lending/lending_fUSD_20260312
["ID","MTS","AMOUNT","RATE_DAILY","PERIOD"]
[408244591,1773304231785,-98.31022945,0.00018589,2]
[408244593,1773304231800,-52.68977055,0.00018589,2]
[408244595,1773304231812,-151.0,0.00018589,2]
[408244596,1773304231824,-151.0,0.00018589,2]
[408244597,1773304231836,-151.0,0.00018589,2]
[408244598,1773304231847,-151.0,0.00018589,2]
[408244599,1773304231857,-151.0,0.00018589,2]
[408244600,1773304231868,-151.0,0.00018589,2]
[408244601,1773304231878,-151.0,0.00018589,2]
[408244602,1773304231889,-657.64,0.00018589,2]
[408244603,1773304231900,-500.0,0.00018599,2]
[408244604,1773304231912,-500.0,0.00018599,2]
[408244605,1773304231923,-500.0,0.00018599,2]
[408244606,1773304231934,-500.0,0.00018599,2]
[408244607,1773304231944,-500.0,0.00018599,2]
[408244608,1773304231955,-500.0,0.00018599,2]
[408244609,1773304231966,-469.33204257,0.00018599,2]
[408244610,1773304231976,-631.51413766,0.00018599,2]
[408244611,1773304231987,-5240.27752328,0.000186,2]
[408244612,1773304232000,-9412.5,0.000186,2]
[408244613,1773304232022,-478.06,0.000186,2]
[408244614,1773304232040,-402.85731857,0.000186,2]
[408244615,1773304232055,-132930.70284888,0.000186,2]
[408244616,1773304232069,-867.61452967,0.000186,2]
[408244617,1773304232083,-6495.66958523,0.000186,2]
[408244618,1773304232102,-931.89,0.000186,2]
[408244625,1773304237560,-5745.69,0.00018574,2]
[408244626,1773304237569,-14183.15067726,0.000186,2]
[408244627,1773304237715,-658.36476939,0.000186,2]
[408244647,1773304242585,-2744.72416054,0.000186,2]
[408244648,1773304245390,-2072.54365153,0.000186,2]
[408244649,1773304245401,-10498.72154106,0.000186,2]
[408244651,1773304258597,-507.0,0.00017,2]
[408244652,1773304258621,-4620.36225319,0.000186,2]
[408244655,1773304401820,-282.29565341,0.00017913,2]
[408244656,1773304401842,-1852.42,0.00017913,2]
[408244657,1773304460530,4650.48008761,0.000167,2]
[408244658,1773304471944,-510.0,0.00017,2]
[408244659,1773304471968,-150.0,0.00017836,2]
[408244660,1773304471991,-1474.71565341,0.00017913,2]
[408244661,1773304474457,-525.28434659,0.00017913,2]
[408244662,1773304603574,1000.0,0.00017,30]
[408244663,1773304618085,1000.0,0.00016,30]
[408244664,1773304633950,-315.0,0.00018276,2]
[408244665,1773304633969,-398.86179408,0.00018298,2]
[408244666,1773304633989,-178.38965131,0.0001832,2]
[408244667,1773304634009,-315.0,0.00018413,2]
[408244668,1773304634029,-1419.61768654,0.0001842,2]
[408244669,1773304634049,-1534.81209999,0.0001842,2]
[408244670,1773304634070,-178.3896513,0.00018499,2]
[408244671,1773304634090,-659.92911678,0.00018529,2]
[408244672,1773304634251,1000.0,0.00015,30]
[408244673,1773304635124,-340.07088322,0.00018529,2]
[408244674,1773304635144,-300.0,0.00018536,2]
[408244675,1773304635164,-300.0,0.00018536,2]
[408244676,1773304635185,-300.0,0.00018536,2]
[408244677,1773304635208,-3759.92911678,0.00018537,2]
[408244678,1773304636503,-5000.0,0.00018537,2]
[408244679,1773304637689,-335.62809205,0.00018537,2]
[408244680,1773304637711,-1200.0,0.00018587,2]
[408244681,1773304637732,-1200.0,0.00018588,2]
[408244682,1773304637752,-1552.43681819,0.00018589,2]
[408244683,1773304637771,-487.86945979,0.00018589,2]
[408244684,1773304637795,-224.06562997,0.00018593,2]
[408244685,1773304638733,-625.93437003,0.00018593,2]
[408244686,1773304638755,-3190.0746209,0.00018594,2]
[408244687,1773304638777,-1183.99100907,0.00018594,2]
[408244688,1773304644783,2.44097143,0.00014,30]
[408244689,1773304644807,997.55902857,0.00014,30]
[408244690,1773304697429,174.0,0.00018,2]
[408244691,1773304703023,1989.28,0.00014,30]
[408244692,1773304795783,510.89636,0.00017,2]
[408244696,1773304807001,170.0,0.00018,2]
[408244697,1773304813241,-500.0,0.0001851,2]
[408244698,1773304814428,-500.0,0.0001851,2]
[408244699,1773304818833,-500.0,0.0001851,2]
[408244700,1773304820055,-500.0,0.0001851,2]
[408244701,1773304821027,-500.0,0.0001851,2]
[408244702,1773304821304,-500.0,0.0001851,2]
[408244703,1773304822641,-500.0,0.0001851,2]
[408244704,1773304822870,-500.0,0.0001851,2]
[408244705,1773304823174,-500.0,0.0001851,2]
[408244706,1773304823421,-500.0,0.0001851,2]
[408244707,1773304824195,-500.0,0.0001851,2]
[408244708,1773304824899,-500.0,0.0001851,2]
[408244709,1773304825816,-500.0,0.0001851,2]
[408244710,1773304826537,-255.0212,0.0001851,2]
[408244711,1773304826557,-244.9788,0.0001851,2]
[408244712,1773304827279,-64.0212,0.0001851,2]
[408244713,1773304827301,-300.0,0.00018528,2]
[408244714,1773304827323,-135.9788,0.00018528,2]
[408244715,1773304829155,-500.0,0.00018528,2]
[408244716,1773304830749,-500.0,0.00018528,2]
[408244717,1773304831622,-64.0212,0.00018528,2]
[408244718,1773304831644,-300.0,0.00018528,2]
[408244719,1773304831667,-135.9788,0.00018528,2]
[408244720,1773304860021,-164.0212,0.00018528,2]
[408244721,1773304860042,-335.9788,0.00018529,2]
[408244722,1773304861146,-500.0,0.00018529,2]
[408244723,1773304862098,-500.0,0.00018529,2]
[408244724,1773304862895,-500.0,0.00018529,2]
[408244725,1773305008935,-313.25,0.00018351,2]
[408244726,1773305008958,-186.75,0.0001842,2]
[408244727,1773305010387,-13.25,0.0001842,2]
[408244728,1773305010408,-200.0,0.00018432,2]
[408244729,1773305010429,-200.0,0.00018499,2]
[408244730,1773305010450,-86.75,0.0001851,2]
[408244731,1773305011369,-113.25,0.0001851,2]
[408244732,1773305011390,-300.0,0.00018528,2]
[408244733,1773305011410,-86.75,0.00018529,2]
[408244734,1773305027270,-500.0,0.00018529,2]
[408244735,1773305028545,-500.0,0.00018529,2]
[408244736,1773305029505,-500.0,0.00018529,2]
[408244737,1773305030426,-500.0,0.00018529,2]
[408244738,1773305031543,-500.0,0.00018529,2]
[408244739,1773305032515,-500.0,0.00018529,2]
[408244740,1773305033647,-500.0,0.00018529,2]
[408244741,1773305034619,-500.0,0.00018529,2]
[408244742,1773305035678,-500.0,0.00018529,2]
[408244743,1773305036514,-500.0,0.00018529,2]
[408244744,1773305037290,-172.7704,0.00018529,2]
[408244745,1773305037310,-327.2296,0.00018529,2]
[408244746,1773305038146,-500.0,0.00018529,2]
[408244747,1773305038958,-500.0,0.00018529,2]
[408244748,1773305039863,-500.0,0.00018529,2]
[408244749,1773305040923,-500.0,0.00018529,2]
[408244750,1773305041784,-500.0,0.00018529,2]
[408244751,1773305042622,-500.0,0.00018529,2]
[408244752,1773305043401,-500.0,0.00018518,2]
[408244753,1773305044133,-500.0,0.00018518,2]
[408244754,1773305044814,-500.0,0.00018518,2]
[408244755,1773305045548,-500.0,0.00018518,2]
[408244756,1773305046201,-500.0,0.00018518,2]
[408244757,1773305046815,-500.0,0.00018518,2]
[408244758,1773305047483,-500.0,0.00018518,2]
[408244759,1773305048095,-500.0,0.00018518,2]
[408244760,1773305048643,-500.0,0.00018518,2]
[408244761,1773305049333,-500.0,0.00018518,2]
[408244762,1773305049824,-500.0,0.00018518,2]
[408244763,1773305050336,-500.0,0.00018518,2]
[408244764,1773305050880,-500.0,0.00018518,2]
[408244765,1773305051383,-500.0,0.00018518,2]
[408244766,1773305051783,-500.0,0.00018518,2]
[408244767,1773305052785,-500.0,0.00018518,2]
[408244768,1773305053314,-500.0,0.00018518,2]
[408244769,1773305053816,-500.0,0.00018518,2]
[408244770,1773305053880,-500.0,0.00018518,2]
[408244771,1773305054331,-500.0,0.00018518,2]
[408244772,1773305054861,-500.0,0.00018518,2]
[408244773,1773305055456,-500.0,0.00018518,2]
[408244774,1773305055990,-500.0,0.00018518,2]
[408244775,1773305215934,250.0,0.00015,2]
[408244776,1773305217005,300.0,0.00017,2]
[408244796,1773305431515,-168.0,0.00018297,2]
[408244797,1773305431525,-512.49567201,0.00018356,7]
[408244798,1773305431536,-4000.0,0.00018356,2]
[408244799,1773305431546,-307.0,0.00018356,2]
[408244800,1773305431555,-300.0,0.00018385,2]
[408244801,1773305431565,-1200.0,0.00018385,2]
[408244802,1773305431574,-1893.45857369,0.00018386,2]
[408244803,1773305431586,-106.54142631,0.00018386,2]
[408244804,1773305431595,-941.88,0.00018386,2]
[408244805,1773305431604,-3864.21,0.00018386,2]
[408244806,1773305431614,-1029.02,0.00018386,2]
[408244807,1773305431623,-1553.81537078,0.00018471,2]
[408244808,1773305431634,-6684.94439055,0.00018471,2]
[408244809,1773305431643,-8397.61709792,0.00018508,2]
[408244810,1773305431654,-865.76667313,0.00018508,2]
[408244811,1773305431669,-455.58154422,0.00018508,2]
[408244812,1773305431682,-616.38608097,0.00018508,2]
[408244813,1773305431693,-296.369996,0.00018508,2]
[408244814,1773305431712,-895.86861586,0.00018508,2]
[408244816,1773305437604,-8636.87587482,0.00018508,2]
[408244817,1773305437614,-850.0,0.00018517,2]
[408244818,1773305437623,-113738.786866,0.00018518,2]
[408244819,1773305437632,-2521.9265323,0.00018518,2]
[408244820,1773305437641,-152.246715,0.00018518,2]
[408244821,1773305437651,-1293.5878243,0.0001853,2]
[408244822,1773305437661,-5922.13281468,0.0001853,2]
[408244823,1773305437670,-547.47427654,0.00018571,2]
[408244824,1773305437679,-26576.5411929,0.00018572,2]
[408244825,1773305437689,-500.0,0.00018593,2]
[408244826,1773305437698,-500.0,0.00018593,2]
[408244827,1773305437707,-500.0,0.00018593,2]
[408244828,1773305437716,-204.23554656,0.00018593,2]
[408244829,1773305437725,-54332.08279883,0.00018594,2]
[408244830,1773305437734,-500.0,0.00018599,2]
[408244831,1773305437743,-500.0,0.00018599,2]
[408244832,1773305437753,-502.14275911,0.00018599,2]
[408244833,1773305437762,-500.0,0.00018599,2]
[408244834,1773305437771,-500.0,0.00018599,2]
[408244835,1773305437780,-200.0,0.000186,2]
[408244836,1773305437789,-200.0,0.000186,2]
[408244837,1773305437798,-200.0,0.000186,2]
[408244838,1773305437808,-1000.0,0.0001861,2]
[408244839,1773305437817,-614.85,0.0001861,2]
[408244841,1773305437827,-200.0,0.00018618,2]
[408244843,1773305437837,-634.54,0.00018619,2]
[408244845,1773305437846,-12187.96923363,0.00018619,2]
[408244847,1773305437855,-168.0,0.00018625,2]
[408244849,1773305437864,-517.45397001,0.00018628,2]
[408244851,1773305437874,-95267.46516064,0.00018629,2]
[408244853,1773305437883,-500.0,0.0001863,2]
[408244855,1773305437891,-500.0,0.00018657,2]
[408244856,1773305437901,-1500.0,0.00018657,2]
[408244858,1773305437910,-562.31740002,0.00018657,2]
[408244860,1773305437919,-599.09653626,0.00018657,2]
[408244862,1773305437928,-200.0,0.00018657,2]
[408244864,1773305437937,-174.61919141,0.00018657,2]
[408244866,1773305437946,-500.0,0.00018699,2]
[408244868,1773305437954,-634.54,0.000187,2]
[408244870,1773305437963,-33599.15,0.0001871,2]
[408244872,1773305437972,-151.0,0.00018719,2]
[408244874,1773305437981,-1718.0,0.00018722,2]
[408244875,1773305437991,-211.0,0.00018755,2]
[408244878,1773305438002,-200.0,0.00018786,2]
[408244879,1773305438012,-230.0,0.00018791,2]
[408244882,1773305438021,-166.66,0.00018797,2]
[408244884,1773305438031,-545.0,0.00018873,2]
[408244886,1773305438042,-166.66,0.00018937,2]
[408244888,1773305438051,-406.63,0.00018949,2]
[408244890,1773305438060,-500.0,0.00018965,2]
[408244892,1773305438070,-2009.56284127,0.00018965,2]
[408244894,1773305438079,-500.0,0.00018967,2]
[408244896,1773305438088,-500.0,0.00018967,2]
[408244898,1773305438100,-1205.44826141,0.00018968,2]
[408244899,1773305438110,-200.0,0.00018974,2]
[408244901,1773305438120,-1380.17,0.00018994,2]
[408244902,1773305438129,-300.48529281,0.00019,5]
[408244904,1773305438139,-2546.17,0.00019053,2]
[408244905,1773305438148,-763.34819366,0.00019068,2]
[408244906,1773305438157,-395.42,0.00019146,2]
[408244907,1773305438170,-476.28,0.00019146,2]
[408244908,1773305438179,-166.66,0.00019162,2]
[408244909,1773305438188,-200.0,0.00019166,2]
[408244910,1773305438198,-1135.86403133,0.00019179,2]
[408244911,1773305438207,-2000.0,0.000192,2]
[408244912,1773305438216,-200.0,0.00019205,2]
[408244913,1773305438227,-181.08010149,0.00019205,2]
[408244914,1773305438236,-168.0,0.0001925,2]
[408244915,1773305438245,-168.0,0.00019267,2]
[408244916,1773305438258,-1718.0,0.00019297,2]
[408244917,1773305438267,-278.0,0.00019369,2]
[408244918,1773305438277,-406.63,0.0001939,2]
[408244919,1773305438286,-900.33,0.00019416,2]
[408244920,1773305438295,-168.0,0.00019486,2]
[408244921,1773305438304,-350.0,0.00019533,2]
[408244922,1773305438313,-168.0,0.00019555,2]
[408244923,1773305438323,-608.0,0.00019572,2]
[408244924,1773305438332,-168.0,0.00019572,2]
[408244925,1773305438341,-1824.78483014,0.000196,2]
[408244926,1773305438351,-620.0,0.00019633,2]
[408244927,1773305438359,-574.843,0.00019633,2]
[408244928,1773305438368,-1343.0,0.00019633,2]
[408244929,1773305438378,-2047.552,0.00019633,2]
[408244930,1773305438387,-1280.0,0.00019633,2]
[408244931,1773305438397,-414.0,0.00019633,2]
[408244932,1773305438407,-2461.0,0.00019633,2]
[408244933,1773305438416,-2198.7533078,0.00019638,2]
[408244934,1773305438426,-3330.186,0.00019708,2]
[408244935,1773305438435,-171.379,0.00019708,2]
[408244936,1773305438444,-200.0,0.00019714,2]
[408244937,1773305438453,-634.54,0.00019716,2]
[408244938,1773305438463,-166.66,0.00019719,2]
[408244939,1773305438472,-500.0,0.00019726,2]
[408244940,1773305438481,-696.72,0.00019726,2]
[408244941,1773305438490,-150.0,0.00019726,2]
[408244942,1773305438499,-500.0,0.00019726,2]
[408244943,1773305438508,-150.0,0.00019726,2]
[408244944,1773305438518,-500.0,0.00019726,2]
[408244945,1773305438527,-150.0,0.00019726,2]
[408244946,1773305438536,-150.0,0.00019726,2]
[408244947,1773305438545,-500.0,0.00019726,2]
[408244948,1773305438555,-162.54927809,0.00019726,2]
[408244949,1773305438564,-152.96458514,0.00019726,2]
[408244950,1773305438573,-500.0,0.00019726,2]
[408244951,1773305438583,-500.0,0.00019726,2]
[408244952,1773305438593,-500.0,0.00019726,2]
[408244953,1773305438602,-500.0,0.00019726,2]
[408244954,1773305438611,-500.0,0.00019726,2]
[408244955,1773305438621,-500.0,0.00019726,2]
[408244956,1773305438630,-251.70358089,0.00019726,2]
[408244957,1773305438639,-500.0,0.00019726,2]
[408244958,1773305438649,-500.0,0.00019726,2]
[408244959,1773305438658,-500.0,0.00019726,2]
[408244960,1773305438667,-273.61755674,0.00019726,2]
[408244961,1773305438677,-500.0,0.00019726,2]
[408244962,1773305438686,-500.0,0.00019726,2]
[408244963,1773305438695,-150.0,0.00019726,2]
[408244964,1773305438703,-500.0,0.00019726,2]
[408244965,1773305438712,-591.0,0.00019726,2]
[408244966,1773305438721,-500.0,0.00019726,2]
[408244967,1773305438731,-150.0,0.00019726,2]
[408244968,1773305438740,-500.0,0.00019726,2]
[408244969,1773305438749,-500.0,0.00019726,2]
[408244970,1773305438758,-150.0,0.00019726,2]
[408244971,1773305438767,-500.0,0.00019726,2]
[408244972,1773305438776,-150.0,0.00019726,2]
[408244973,1773305438785,-150.0,0.00019726,2]
[408244974,1773305438794,-500.0,0.00019726,2]
[408244975,1773305438803,-500.0,0.00019726,2]
[408244976,1773305438812,-150.0,0.00019726,2]
[408244977,1773305438821,-500.0,0.00019726,2]
[408244978,1773305438830,-150.0,0.00019726,2]
[408244979,1773305438839,-200.0,0.00019726,2]
[408244980,1773305438848,-168.0,0.00019731,2]
[408244981,1773305438857,-490.88,0.00019732,2]
[408244982,1773305438867,-234.83493375,0.00019753,2]
[408244983,1773305438877,-235.56512439,0.00019753,2]
[408244984,1773305438886,-500.0,0.00019781,2]
[408244985,1773305438895,-150.0,0.00019781,2]
[408244986,1773305438904,-500.0,0.00019781,2]
[408244987,1773305438913,-277.8166161,0.00019781,2]
[408244988,1773305438922,-500.0,0.00019781,2]
[408244989,1773305438931,-150.0,0.00019781,2]
[408244990,1773305438940,-150.0,0.00019781,2]
[408244991,1773305438949,-500.0,0.00019781,2]
[408244992,1773305438957,-530.08317254,0.00019781,2]
[408244993,1773305438966,-500.0,0.00019781,2]
[408244994,1773305438975,-500.0,0.00019781,2]
[408244995,1773305438984,-500.0,0.00019781,2]
[408244996,1773305438993,-500.0,0.00019781,2]
[408244997,1773305439002,-519.05367316,0.00019781,2]
[408244998,1773305439014,-500.0,0.00019781,2]
[408244999,1773305439023,-500.0,0.00019781,2]
[408245000,1773305439252,-500.0,0.00019781,2]
[408245001,1773305439261,-500.0,0.00019781,2]
[408245002,1773305439270,-500.0,0.00019781,2]
[408245003,1773305439279,-150.0,0.00019781,2]
[408245004,1773305439288,-500.0,0.00019781,2]
[408245005,1773305439298,-591.0,0.00019781,2]
[408245006,1773305439308,-500.0,0.00019781,2]
[408245007,1773305439317,-150.0,0.00019781,2]
[408245008,1773305439327,-500.0,0.00019781,2]
[408245009,1773305439336,-500.0,0.00019781,2]
[408245010,1773305439345,-500.0,0.00019781,2]
[408245011,1773305439357,-150.0,0.00019781,2]
[408245012,1773305439366,-500.0,0.00019781,2]
[408245013,1773305439375,-500.0,0.00019781,2]
[408245014,1773305439385,-150.0,0.00019781,2]
[408245015,1773305439394,-500.0,0.00019781,2]
[408245016,1773305439403,-150.0,0.00019781,2]
[408245017,1773305439412,-803.73131,0.000198,2]
[408245018,1773305439422,-803.73131,0.000198,2]
[408245019,1773305439431,-1143.00514,0.000198,2]
[408245020,1773305439441,-168.0,0.00019818,2]
[408245021,1773305439449,-500.0,0.00019836,2]
[408245022,1773305439459,-200.89059592,0.00019836,2]
[408245023,1773305439468,-500.0,0.00019836,2]
[408245024,1773305439477,-537.38563793,0.00019836,2]
[408245025,1773305439487,-200.0,0.00019836,2]
[408245026,1773305439496,-286.63340985,0.00019836,2]
[408245027,1773305439505,-500.0,0.00019836,2]
[408245028,1773305439515,-500.0,0.00019836,2]
[408245029,1773305439524,-500.0,0.00019836,2]
[408245030,1773305439533,-500.0,0.00019836,2]
[408245031,1773305439544,-500.0,0.00019836,2]
[408245032,1773305439553,-500.0,0.00019836,2]
[408245033,1773305439562,-500.0,0.00019836,2]
[408245034,1773305439571,-500.0,0.00019836,2]
[408245035,1773305439580,-500.0,0.00019836,2]
[408245036,1773305439589,-500.0,0.00019836,2]
[408245038,1773305439599,-150.0,0.00019836,2]
[408245040,1773305439608,-500.0,0.00019836,2]
[408245041,1773305439617,-591.0,0.00019836,2]
[408245042,1773305439627,-500.0,0.00019836,2]
[408245043,1773305439636,-150.0,0.00019836,2]
[408245044,1773305439646,-500.0,0.00019836,2]
[408245045,1773305439656,-500.0,0.00019836,2]
[408245046,1773305439665,-500.0,0.00019836,2]
[408245047,1773305439676,-150.0,0.00019836,2]
[408245048,1773305439686,-500.0,0.00019836,2]
[408245049,1773305439696,-445.54749734,0.00019836,2]
[408245050,1773305439706,-150.0,0.00019836,2]
[408245051,1773305439716,-500.0,0.00019836,2]
[408245052,1773305439726,-150.0,0.00019836,2]
[408245053,1773305439736,-1143.00513,0.0001985,2]
[408245054,1773305439745,-168.0,0.00019855,2]
[408245055,1773305439754,-500.0,0.00019873,2]
[408245056,1773305439764,-800.0,0.00019882,2]
[408245057,1773305439774,-634.54,0.0001989,2]
[408245058,1773305439783,-634.54,0.0001989,2]
[408245059,1773305439792,-500.0,0.0001989,2]
[408245060,1773305439802,-500.0,0.0001989,2]
[408245061,1773305439811,-500.0,0.0001989,2]
[408245062,1773305439820,-500.0,0.0001989,2]
[408245063,1773305439830,-500.0,0.0001989,2]
[408245064,1773305439839,-500.0,0.0001989,2]
[408245065,1773305439847,-500.0,0.0001989,2]
[408245067,1773305439857,-500.0,0.0001989,2]
[408245068,1773305439865,-500.0,0.0001989,2]
[408245069,1773305439874,-150.0,0.0001989,2]
[408245070,1773305439883,-500.0,0.0001989,2]
[408245071,1773305439892,-591.0,0.0001989,2]
[408245072,1773305439901,-500.0,0.0001989,2]
[408245073,1773305439909,-150.0,0.0001989,2]
[408245074,1773305439918,-500.0,0.0001989,2]
[408245075,1773305439927,-500.0,0.0001989,2]
[408245076,1773305439936,-500.0,0.0001989,2]
[408245077,1773305439946,-254.00301513,0.0001989,2]
[408245078,1773305439955,-470.05006008,0.0001989,2]
[408245079,1773305439964,-150.0,0.0001989,2]
[408245080,1773305439973,-150.0,0.0001989,2]
[408245081,1773305439982,-500.0,0.0001989,2]
[408245082,1773305439991,-151.0,0.00019897,2]
[408245083,1773305440000,-151.0,0.00019897,2]
[408245084,1773305440010,-500.0,0.00019899,2]
[408245085,1773305440020,-571.14105569,0.00019899,2]
[408245086,1773305440029,-270.57976163,0.00019899,2]
[408245087,1773305440038,-387.63899304,0.00019899,2]
[408245088,1773305440047,-226172.36291939,0.000199,2]
[408245091,1773305441129,-12614.04808174,0.000199,2]
[408245092,1773305441140,-4897.49151961,0.000199,2]
[408245093,1773305441151,-3330.68460946,0.000199,2]
[408245094,1773305441164,-7093.25126285,0.000199,2]
[408245095,1773305441176,-1437.67372447,0.000199,2]
[408245096,1773305441355,-807.438462,0.000199,2]
[408245097,1773305441367,-657.63718654,0.000199,2]
[408245098,1773305441381,-3768.35122283,0.000199,2]
[408245099,1773305441392,-5024.43574386,0.000199,2]
[408245100,1773305441402,-151.0,0.000199,2]
[408245101,1773305441412,-151.0,0.000199,2]
[408245102,1773305441421,-151.0,0.000199,2]
[408245103,1773305441430,-151.0,0.000199,2]
[408245104,1773305441440,-151.0,0.000199,2]
[408245105,1773305441449,-151.0,0.000199,2]
[408245106,1773305441457,-151.0,0.000199,2]
[408245107,1773305441466,-364.443725,0.000199,2]
[408245108,1773305441475,-364.443725,0.000199,2]
[408245109,1773305441484,-364.443725,0.000199,2]
[408245110,1773305441493,-364.443725,0.000199,2]
[408245111,1773305441501,-151.0,0.000199,2]
[408245112,1773305441510,-151.0,0.000199,2]
[408245113,1773305441518,-151.0,0.000199,2]
[408245114,1773305441527,-521.926839,0.000199,2]
[408245115,1773305441538,-521.926839,0.000199,2]
[408245116,1773305441547,-521.926839,0.000199,2]
[408245117,1773305441556,-521.926839,0.000199,2]
[408245118,1773305441565,-151.0,0.000199,2]
[408245119,1773305441574,-323.34669834,0.000199,2]
[408245120,1773305441583,-230.3364096,0.000199,2]
[408245121,1773305441592,-389.403755,0.000199,2]
[408245122,1773305441601,-389.403755,0.000199,2]
[408245123,1773305441610,-151.0,0.000199,2]
[408245124,1773305441618,-151.0,0.000199,2]
[408245125,1773305441627,-151.0,0.000199,2]
[408245126,1773305441636,-677.534627,0.000199,2]
[408245127,1773305441644,-677.534627,0.000199,2]
[408245128,1773305441653,-677.534627,0.000199,2]
[408245129,1773305441662,-641.875025,0.000199,2]
[408245130,1773305441671,-677.534627,0.000199,2]
[408245131,1773305441680,-641.875025,0.000199,2]
[408245132,1773305441689,-641.875025,0.000199,2]
[408245133,1773305441697,-641.875025,0.000199,2]
[408245134,1773305441706,-152.006543,0.000199,2]
[408245135,1773305441715,-151.0,0.000199,2]
[408245136,1773305441723,-151.0,0.000199,2]
[408245137,1773305441732,-1143.00514,0.000199,2]
[408245138,1773305441740,-151.0,0.000199,2]
[408245139,1773305441749,-222.52962527,0.000199,3]
[408245140,1773305441758,-740.861699,0.000199,2]
[408245141,1773305441767,-247.67932,0.000199,2]
[408245142,1773305441776,-740.861699,0.000199,2]
[408245143,1773305441785,-247.67932,0.000199,2]
[408245144,1773305441794,-740.861699,0.000199,2]
[408245145,1773305441803,-247.67932,0.000199,2]
[408245146,1773305441812,-740.861699,0.000199,2]
[408245147,1773305441821,-247.67932,0.000199,2]
[408245148,1773305441829,-151.0,0.000199,2]
[408245149,1773305441838,-151.0,0.000199,2]
[408245150,1773305441847,-198.9105706,0.000199,2]
[408245151,1773305441856,-177.06959966,0.000199,2]
[408245152,1773305441865,-400.0,0.000199,2]
[408245153,1773305441875,-151.0,0.000199,2]
[408245154,1773305441884,-151.0,0.000199,2]
[408245155,1773305441893,-151.0,0.000199,2]
[408245156,1773305441901,-241.0746956,0.000199,2]
[408245157,1773305441910,-2247.38784294,0.000199,2]
[408245158,1773305441919,-177.59,0.00019906,2]
[408245159,1773305441928,-160.0,0.00019928,2]
[408245160,1773305441937,-551.71645344,0.00019944,2]
[408245161,1773305441945,-205.61978482,0.00019944,2]
[408245162,1773305441954,-185.08513011,0.00019944,2]
[408245163,1773305441963,-504.65270475,0.00019945,2]
[408245164,1773305441973,-150.0,0.00019945,2]
[408245165,1773305441981,-225.91475605,0.00019945,2]
[408245166,1773305441990,-500.0,0.00019945,2]
[408245167,1773305441999,-500.0,0.00019945,2]
[408245168,1773305442008,-500.0,0.00019945,2]
[408245169,1773305442017,-500.0,0.00019945,2]
[408245170,1773305442026,-500.0,0.00019945,2]
[408245171,1773305442037,-270.48763024,0.00019945,2]
[408245172,1773305442046,-302.34407371,0.00019945,2]
[408245173,1773305442054,-591.0,0.00019945,2]
[408245174,1773305442063,-500.0,0.00019945,2]
[408245175,1773305442072,-157.95050099,0.00019945,2]
[408245176,1773305442081,-500.0,0.00019945,2]
[408245177,1773305442090,-500.0,0.00019945,2]
[408245178,1773305442098,-500.0,0.00019945,2]
[408245179,1773305442107,-151.97360178,0.00019945,2]